[Event "Fagernes Chess Open 2025"]
[Site "Fagernes"]
[Date "2025.04.16"]
[Round "5.17"]
[White "Sigvaldsen, Sebastian"]
[Black "Holten, Terje"]
[Result "1-0"]
[Annotator "NA RC"]
[ECO "E21"]
[WhiteElo "1613"]
[BlackElo "1566"]
[PlyCount "65"]
[EventDate "2025.04.12"]
[EventCountry "NOR"]
[SourceTitle "playchess.com"]
[Source "ChessBase"]
[SourceQuality "1"]
[TimeControl "40/6000+30:2400+30"]

1. d4 {[%emt 0:00:19]} Nf6 {[%emt 0:00:08]} 2. c4 {[%emt 0:00:38]} e6 {[%emt 0:00:05]} 3. Nc3 {[%emt 0:00:33]} Bb4 {[%emt 0:00:15]} 4. Nf3 {[%emt 0:01:16]} O-O {[%emt 0:00:59]} 5. Bg5 {[%emt 0:00:33]} h6 {[%emt 0:00:42]} 6. Bh4 {[%emt 0:01:13]} b6 {[%emt 0:02:23]} 7. e4 {[%emt 0:06:18]} Be7 {[%emt 0:03:24]} 8. Bd3 {[%emt 0:03:50]} Bb7 {[%emt 0:03:48]} 9. O-O {[%emt 0:00:52]} d5 {[%emt 0:05:00]} 10. cxd5 {[%emt 0:01:19]} exd5 {[%emt 0:00:15]} 11. e5 {[%emt 0:02:08]} Ne4 {[%emt 0:03:28]} 12. Bxe7 {[%emt 0:01:20]} Qxe7 {[%emt 0:00:04]} 13. Re1 {[%emt 0:01:41]} Nxc3 {[%emt 0:02:17]} 14. bxc3 {[%emt 0:00:52]} Nd7 {[%emt 0:02:44]} 15. Re3 {[%emt 0:05:15]} c5 {[%emt 0:01:35]} 16. Nd2 {[%emt 0:01:45]} cxd4 {[%emt 0:01:12]} 17. cxd4 {[%emt 0:00:11]} Rac8 {[%emt 0:02:43]} 18. Rg3 {[%emt 0:00:45]} f6 {[%emt 0:04:57]} 19. Qh5 {[%emt 0:02:14]} fxe5 {[%emt 0:03:08]} 20. Qxh6 {[%emt 0:00:26]} Qf6 {[%emt 0:01:25]} 21. Qh7+ {[%emt 0:00:36]} Kf7 {[%emt 0:00:06]} 22. Rf3 {[%emt 0:00:21]} Rh8 {[%emt 0:00:20]} 23. Rxf6+ {[%emt 0:00:27]} Nxf6 {[%emt 0:00:07]} 24. Qg6+ {[%emt 0:00:09]} Kf8 {[%emt 0:00:25]} 25. dxe5 {[%emt 0:00:23]} Ne8 {[%emt 0:00:26]} 26. Bb5 {[%emt 0:02:38]} Rh6 {[%emt 0:00:22]} 27. Qf5+ {[%emt 0:00:21]} Ke7 {[%emt 0:00:37]} 28. Bxe8 {[%emt 0:00:20]} Rxe8 {[%emt 0:00:06]} 29. Nf3 {[%emt 0:00:40]} Rf8 {[%emt 0:00:30]} 30. Qg5+ {[%emt 0:00:17]} Kf7 {[%emt 0:00:26]} 31. Rc1 {[%emt 0:00:27]} Kg8 {[%emt 0:00:42]} 32. Rc7 {[%emt 0:00:30]} Rf7 {[%emt 0:00:23]} 33. Qd8+ {[%emt 0:02:00]} 1-0

[Event "Fagernes Chess Open 2025"]
[Site "Fagernes"]
[Date "2025.04.16"]
[Round "5.18"]
[White "Wen, Liana"]
[Black "Skotheim, Havard"]
[Result "1-0"]
[Annotator "NA RC"]
[ECO "B34"]
[WhiteElo "1404"]
[BlackElo "1548"]
[PlyCount "91"]
[EventDate "2025.04.12"]
[EventCountry "NOR"]
[SourceTitle "playchess.com"]
[Source "ChessBase"]
[SourceQuality "1"]
[TimeControl "40/6000+30:2400+30"]

1. e4 {[%emt 0:02:03]} c5 {[%emt 0:00:18]} 2. Nf3 {[%emt 0:00:34]} Nc6 {[%emt 0:00:24]} 3. d4 {[%emt 0:01:19]} cxd4 {[%emt 0:00:31]} 4. Nxd4 {[%emt 0:00:31]} g6 {[%emt 0:00:26]} 5. Nc3 {[%emt 0:00:51]} Bg7 {[%emt 0:00:23]} 6. Be3 {[%emt 0:00:28]} Nf6 {[%emt 0:00:55]} 7. Qd2 {[%emt 0:00:54]} O-O {[%emt 0:01:43]} 8. O-O-O {[%emt 0:00:54]} Ng4 {[%emt 0:05:26]} 9. h3 {[%emt 0:03:17]} Nxe3 {[%emt 0:01:14]} 10. fxe3 {[%emt 0:00:15]} d6 {[%emt 0:04:01]} 11. Be2 {[%emt 0:04:43]} a6 {[%emt 0:02:19]} 12. g4 {[%emt 0:01:39]} Qc7 {[%emt 0:08:12]} 13. h4 {[%emt 0:00:52]} h6 {[%emt 0:02:12]} 14. h5 {[%emt 0:04:23]} g5 {[%emt 0:00:44]} 15. Nf5 {[%emt 0:03:44]} Bxf5 {[%emt 0:03:13]} 16. exf5 {[%emt 0:00:20]} Bxc3 {[%emt 0:04:17]} 17. Qxc3 {[%emt 0:01:03]} f6 {[%emt 0:01:16]} 18. Bf3 {[%emt 0:09:13]} Rac8 {[%emt 0:02:51]} 19. Qb3+ {[%emt 0:04:00]} Kg7 {[%emt 0:02:31]} 20. Bd5 {[%emt 0:06:20]} a5 {[%emt 0:03:08]} 21. Be6 {[%emt 0:05:56]} Rb8 {[%emt 0:00:25]} 22. Rd3 {[%emt 0:02:22]} Ne5 {[%emt 0:07:09]} 23. Rc3 {[%emt 0:02:08]} Qd8 {[%emt 0:00:39]} 24. Rg1 {[%emt 0:01:17]} b5 {[%emt 0:01:15]} 25. e4 {[%emt 0:03:54]} b4 {[%emt 0:03:34]} 26. Rcg3 {[%emt 0:01:46]} Qb6 {[%emt 0:03:39]} 27. Rd1 {[%emt 0:02:46]} Nc6 {[%emt 0:03:50]} 28. Rgd3 {[%emt 0:13:17]} Ra8 {[%emt 0:05:37]} 29. Qa4 {[%emt 0:04:20]} Ne5 {[%emt 0:02:45]} 30. Rg3 {[%emt 0:02:22]} Qf2 {[%emt 0:02:56]} 31. Rgg1 {[%emt 0:05:36]} Qf4+ {[%emt 0:01:45]} 32. Kb1 {[%emt 0:00:08]} Nxg4 {[%emt 0:01:48]} 33. Bd5 {[%emt 0:03:34]} Ra7 {[%emt 0:01:39]} 34. Rdf1 {[%emt 0:00:29]} Qh2 {[%emt 0:04:11]} 35. Rxg4 {[%emt 0:01:47]} Qxh5 {[%emt 0:00:30]} 36. Rfg1 {[%emt 0:03:25]} Rc8 {[%emt 0:03:43]} 37. R4g2 {[%emt 0:03:36]} Rc5 {[%emt 0:03:11]} 38. Qb3 {[%emt 0:03:48]} Rac7 {[%emt 0:02:06]} 39. Bg8 {[%emt 0:00:59]} Re5 {[%emt 0:02:50]} 40. Rh2 {[%emt 0:02:41]} Qe8 {[%emt 0:01:01]} 41. Rxh6 {[%emt 0:41:51]} Kxh6 {[%emt 0:43:48]} 42. Rh1+ {[%emt 0:00:03]} Kg7 {[%emt 0:01:14]} 43. Rh7+ {[%emt 0:00:11]} Kf8 {[%emt 0:00:14]} 44. Bd5 {[%emt 0:06:15]} Rxd5 {[%emt 0:07:07]} 45. exd5 {[%emt 0:00:00]} Qb5 {[%emt 0:00:00]} 46. Rh8+ {[%emt 0:00:00]} 1-0